bitfinex/quotes_BTCUSD_20240723
["timestamp","ask_amount","ask_price","bid_price","bid_amount"]
[1721764812841,0.00393,65651.0,65650.0,0.9320191]
[1721764813048,0.00393,65651.0,65650.0,0.83494816]
[1721764813315,0.00393,65651.0,65650.0,0.9320191]
[1721764813520,0.00083,65656.0,65653.0,0.04999999]
[1721764813725,0.07641848,65654.0,65653.0,0.02417133]
[1721764813943,0.53335848,65654.0,65653.0,0.02417133]
[1721764814123,0.07641848,65654.0,65653.0,0.02417133]
[1721764814358,0.53335848,65654.0,65653.0,0.02417133]
[1721764814579,0.00083,65656.0,65655.0,0.04707094]
[1721764814788,0.00083,65656.0,65655.0,0.21709085]
[1721764815208,0.00083,65656.0,65655.0,0.30781991]
[1721764815416,0.00083,65656.0,65655.0,0.37050709]
[1721764815844,0.00083,65656.0,65655.0,0.1378]
[1721764816048,0.00083,65656.0,65655.0,0.28481991]
[1721764816251,0.00083,65656.0,65655.0,0.1428]
[1721764816252,0.00183,65656.0,65655.0,0.1428]
[1721764816467,0.154139,65656.0,65655.0,0.005]
[1721764816675,0.152313,65654.0,65653.0,0.02417133]
[1721764816892,0.53335848,65654.0,65653.0,0.02417133]
[1721764817161,0.00292906,65651.0,65648.0,0.1414]
[1721764817366,0.00083,65656.0,65648.0,0.1414]
[1721764817569,0.152314,65654.0,65649.0,0.002794]
[1721764817785,0.152316,65653.0,65650.0,0.01683653]
[1721764818010,0.00183,65656.0,65650.0,0.01683653]
[1721764818011,0.00475906,65656.0,65650.0,0.01683653]
[1721764818258,0.00183,65656.0,65650.0,0.01683653]
[1721764818463,0.00475906,65656.0,65651.0,0.02053075]
[1721764818639,0.00183,65656.0,65651.0,0.02053075]
[1721764818868,0.00083,65656.0,65652.0,0.02604602]
[1721764819071,0.07348942,65655.0,65653.0,0.02518842]
[1721764819276,0.00083,65656.0,65654.0,0.023]
[1721764819932,0.22872948,65655.0,65654.0,0.023]
[1721764820134,0.07348942,65655.0,65654.0,0.023]
[1721764820349,0.07348942,65655.0,65653.0,0.014]
[1721764820350,0.45987506,65653.0,65652.0,0.03017133]
[1721764820556,0.45987506,65653.0,65652.0,0.05317133]
[1721764820765,0.152314,65654.0,65652.0,0.07032846]
[1721764820979,0.22580042,65655.0,65652.0,0.07032846]
[1721764821238,0.30645,65656.0,65655.0,0.04707094]
[1721764821239,0.00183,65656.0,65655.0,0.04707094]
[1721764821443,0.00183,65656.0,65655.0,0.43563617]
[1721764821673,0.009449,65663.0,65659.0,0.0601]
[1721764821881,0.00292906,65662.0,65660.0,0.06803884]
[1721764822083,0.152295,65662.0,65660.0,0.06803884]
[1721764822307,0.009449,65663.0,65660.0,0.023]
[1721764822739,0.07348942,65662.0,65660.0,0.023]
[1721764823166,0.07448942,65662.0,65660.0,0.028]
[1721764823373,0.07448942,65662.0,65660.0,0.04]
[1721764823584,0.07348942,65661.0,65660.0,0.04]
[1721764823793,0.53330948,65661.0,65660.0,0.017]
[1721764824187,0.07348942,65661.0,65660.0,0.017]
[1721764824380,0.1727697,65661.0,65660.0,0.017]
[1721764824794,0.48029276,65661.0,65660.0,0.017]
[1721764824997,0.17569876,65661.0,65660.0,0.017]
[1721764825195,0.1727697,65661.0,65660.0,0.02996713]
[1721764825414,0.1727697,65661.0,65659.0,0.08427133]
[1721764825635,0.1727697,65661.0,65660.0,0.005]
[1721764825947,0.0204727,65661.0,65660.0,0.018]
[1721764826170,0.0204727,65661.0,65660.0,0.03606713]
[1721764826371,0.1727697,65661.0,65660.0,0.03106713]
[1721764826573,0.009449,65663.0,65662.0,0.04707094]
[1721764826707,0.009449,65663.0,65662.0,0.21909085]
[1721764826912,0.009449,65663.0,65662.0,0.80914084]
[1721764827111,0.009449,65668.0,65667.0,0.48342093]
[1721764827334,0.009449,65668.0,65667.0,1.03893734]
[1721764827564,0.009449,65668.0,65667.0,1.13334734]
[1721764828330,0.009449,65679.0,65667.0,1.13334734]
[1721764828331,0.009449,65679.0,65678.0,0.04707094]
[1721764828530,0.009449,65679.0,65678.0,0.38316218]
[1721764828756,0.009449,65679.0,65678.0,0.4316784]
[1721764829167,0.009449,65679.0,65678.0,0.53167839]
[1721764829369,0.009449,65679.0,65678.0,0.63367839]
[1721764829569,0.00083,65693.0,65682.0,0.04707094]
[1721764829775,0.07348942,65687.0,65683.0,0.10107493]
[1721764830163,0.07348942,65687.0,65683.0,0.023]
[1721764830363,0.07348942,65687.0,65679.0,0.14701991]
[1721764830364,0.07348942,65687.0,65680.0,0.17007094]
[1721764830691,0.07348942,65687.0,65682.0,0.04707094]
[1721764830891,0.00083,65693.0,65690.0,0.1428]
[1721764831097,0.00083,65693.0,65692.0,0.14707093]
[1721764831291,0.00083,65693.0,65692.0,0.29409084]
[1721764831468,0.00083,65693.0,65692.0,0.41709084]
[1721764832073,0.00083,65693.0,65692.0,0.79770354]
[1721764832274,0.009449,65697.0,65696.0,0.13049999]
[1721764832543,0.009449,65697.0,65696.0,0.2035]
[1721764832749,0.009449,65697.0,65696.0,0.35051991]
[1721764833612,0.009449,65705.0,65696.0,0.4005199]
[1721764833815,0.009449,65705.0,65698.0,0.04999999]
[1721764834020,0.009449,65705.0,65699.0,0.14701991]
[1721764834387,0.07348942,65701.0,65699.0,0.023]
[1721764834736,0.00292906,65704.0,65699.0,0.023]
[1721764834914,0.313843,65705.0,65700.0,0.02416713]
[1721764834915,0.161645,65705.0,65700.0,0.02416713]
[1721764835114,0.83744048,65701.0,65700.0,0.02416713]
[1721764835321,0.15513806,65699.0,65698.0,0.02417133]
[1721764835731,0.45955606,65699.0,65698.0,0.02417133]
[1721764835930,0.15513806,65699.0,65698.0,0.02417133]
[1721764836132,0.45955606,65699.0,65698.0,0.02417133]
[1721764836345,0.76397406,65699.0,65698.0,0.04463846]
[1721764836545,1.06839206,65699.0,65698.0,0.014]
[1721764836770,1.37281006,65699.0,65698.0,0.014]
[1721764837410,1.06839206,65699.0,65698.0,0.014]
[1721764838236,0.76397406,65699.0,65698.0,0.014]
[1721764838581,1.06839206,65699.0,65698.0,0.026]
[1721764838992,1.06839206,65699.0,65698.0,0.012]
[1721764839195,0.15515606,65691.0,65690.0,0.02417133]
[1721764839433,0.15515606,65691.0,65683.0,0.002794]
[1721764839434,0.152244,65684.0,65683.0,0.002794]
[1721764839596,0.07348942,65693.0,65682.0,0.002794]
[1721764839597,0.152246,65683.0,65682.0,0.002794]
[1721764839803,1.065222,65683.0,65682.0,0.002794]
[1721764840010,1.065222,65683.0,65677.0,0.0625]
[1721764840011,0.304502,65681.0,65677.0,0.0625]
[1721764840215,0.152256,65679.0,65678.0,0.002794]
[1721764840416,0.304456,65691.0,65677.0,0.0625]
[1721764840417,0.304502,65681.0,65677.0,0.0625]
[1721764840592,0.4688,65698.0,65683.0,0.014]
[1721764840593,0.76122,65684.0,65683.0,0.014]
[1721764840787,0.456732,65684.0,65683.0,0.014]
[1721764840998,0.4688,65698.0,65683.0,0.014]
[1721764840999,0.152242,65685.0,65683.0,0.014]
[1721764841197,0.152241,65685.0,65684.0,0.002794]
[1721764841415,0.456724,65685.0,65684.0,0.002794]
[1721764841626,0.456724,65685.0,65683.0,0.014]
[1721764841627,0.456732,65684.0,65683.0,0.014]
[1721764841839,0.304432,65697.0,65684.0,0.0823]
[1721764842045,0.304442,65694.0,65685.0,0.05484312]
[1721764842268,0.152226,65692.0,65685.0,0.05484312]
[1721764842487,0.14701991,65704.0,65685.0,0.05484312]
[1721764842488,0.152237,65687.0,65686.0,0.03293614]
[1721764842899,0.304457,65691.0,65686.0,0.05593614]
[1721764843115,0.304446,65694.0,65687.0,0.0551196]
[1721764843322,0.009449,65705.0,65689.0,0.064]
[1721764843531,0.009449,65705.0,65690.0,0.023]
[1721764843752,0.15222,65695.0,65690.0,0.023]
[1721764843963,0.152218,65695.0,65690.0,0.023]
[1721764844210,0.304434,65696.0,65691.0,0.03537352]
[1721764844383,0.304434,65696.0,65692.0,0.023]
[1721764844384,0.152221,65694.0,65692.0,0.023]
[1721764844588,0.304406,65702.0,65689.0,0.21101991]
[1721764844589,0.07348942,65701.0,65689.0,0.064]
[1721764844818,0.45669,65690.0,65689.0,0.064]
[1721764845057,0.76115,65690.0,65689.0,0.087]
[1721764845808,1.37011,65688.0,65682.0,0.0621]
[1721764846014,1.37011,65688.0,65669.0,0.09039668]
[1721764846015,1.065641,65688.0,65676.0,0.139]
[1721764846427,0.13628942,65694.0,65676.0,0.139]
[1721764846428,0.7613,65677.0,65676.0,0.139]
[1721764846576,0.7613,65677.0,65676.0,0.16317133]
[1721764847236,0.7613,65677.0,65663.0,0.1606]
[1721764847237,0.456822,65671.0,65670.0,0.0817]
[1721764847416,1.065918,65671.0,65670.0,0.0817]
[1721764847653,0.761475,65662.0,65661.0,0.0817]
[1721764847863,0.1143,65677.0,65656.0,0.02417133]
[1721764847864,0.761532,65657.0,65656.0,0.02417133]
[1721764848068,0.456919,65657.0,65656.0,0.01709713]
[1721764848490,0.761532,65657.0,65656.0,0.01709713]
[1721764848699,0.456919,65657.0,65656.0,0.01709713]
[1721764848917,0.761532,65657.0,65656.0,0.01709713]
[1721764849122,0.456933,65655.0,65654.0,0.0817]
[1721764849337,0.456933,65655.0,65648.0,0.07034279]
[1721764849338,0.304569,65667.0,65648.0,0.02508433]
[1721764849339,0.761625,65649.0,65648.0,0.02508433]
[1721764849549,0.761625,65649.0,65648.0,0.000913]
[1721764849550,1.21329491,65649.0,65648.0,0.000913]
[1721764850404,1.56794491,65649.0,65648.0,0.000913]
[1721764850610,2.07079491,65649.0,65648.0,0.014913]
[1721764850826,2.44679491,65649.0,65648.0,0.014913]
[1721764851038,2.44679491,65649.0,65648.0,0.000913]
[1721764851531,2.44679491,65649.0,65614.0,0.0788]
[1721764851532,1.371361,65628.0,65614.0,0.0788]
[1721764851738,1.371361,65628.0,65606.0,0.02417133]
[1721764851739,1.51838091,65628.0,65606.0,0.0788]
[1721764851954,1.51838091,65628.0,65607.0,0.0631]
[1721764852168,1.87312791,65628.0,65607.0,0.0631]
[1721764852377,1.66838091,65628.0,65606.0,0.0788]
[1721764852600,1.97312791,65628.0,65606.0,0.0788]
[1721764852809,1.92312791,65628.0,65606.0,0.0788]
[1721764853023,1.51838091,65628.0,65606.0,0.1288]
[1721764853249,1.51838091,65628.0,65623.0,0.0624]
[1721764853250,0.761867,65628.0,65623.0,0.0624]
[1721764853455,1.066614,65628.0,65627.0,0.0996524]
[1721764853674,1.066614,65628.0,65627.0,0.1136524]
[1721764853887,0.45712,65628.0,65627.0,0.1136524]
[1721764854090,0.45712,65628.0,65627.0,0.0996524]
[1721764854306,0.762867,65628.0,65627.0,0.1076524]
[1721764854526,1.067614,65628.0,65627.0,0.1076524]
[1721764854731,1.067614,65628.0,65627.0,0.13182373]
[1721764854936,1.067614,65628.0,65627.0,0.13569833]
[1721764855154,1.372361,65628.0,65627.0,0.05359833]
[1721764855356,1.372361,65628.0,65627.0,0.029427]
[1721764855357,1.51938091,65628.0,65627.0,0.029427]
[1721764855561,1.93782791,65628.0,65627.0,0.029427]
[1721764855974,1.98782791,65628.0,65627.0,0.029427]
[1721764856178,1.58308091,65628.0,65627.0,0.029427]
[1721764856394,1.51938091,65628.0,65627.0,0.017427]
[1721764856599,1.51938091,65628.0,65627.0,0.031427]
[1721764856600,0.762867,65628.0,65627.0,0.031427]
[1721764857005,1.066614,65628.0,65627.0,0.023427]
[1721764857212,1.066614,65628.0,65627.0,0.014427]
[1721764857564,1.066614,65628.0,65627.0,0.009427]
[1721764858142,1.067614,65628.0,65627.0,0.017427]
[1721764858345,1.067614,65628.0,65627.0,0.031427]
[1721764858973,1.371361,65628.0,65627.0,0.023427]
[1721764859145,1.066614,65628.0,65627.0,0.023427]
[1721764859351,1.51838091,65628.0,65627.0,0.023427]
[1721764859704,1.51838091,65628.0,65627.0,0.009427]
[1721764859705,1.127568,65628.0,65627.0,0.009427]
[1721764860296,1.072514,65628.0,65627.0,0.010427]
[1721764860432,1.081941,65628.0,65627.0,0.010427]
[1721764860633,1.075941,65628.0,65627.0,0.009427]
[1721764860838,1.075941,65628.0,65627.0,0.091627]
[1721764861053,1.080941,65628.0,65627.0,0.009427]
[1721764861249,1.080941,65628.0,65627.0,0.010427]
[1721764861250,1.22796091,65628.0,65627.0,0.010427]
[1721764861457,1.22796091,65628.0,65627.0,0.009427]
[1721764861458,1.53270791,65628.0,65627.0,0.009427]
[1721764861826,1.52770791,65628.0,65627.0,0.009427]
[1721764862288,1.88245491,65628.0,65627.0,0.009427]
[1721764862490,1.61100791,65628.0,65627.0,0.009427]
[1721764862695,2.02645491,65628.0,65627.0,0.009427]
[1721764862908,2.17645491,65628.0,65627.0,0.009427]
[1721764863113,2.17645491,65628.0,65627.0,0.018427]
[1721764863324,2.17645491,65628.0,65627.0,0.012427]
[1721764863725,2.48120191,65628.0,65627.0,0.009427]
[1721764863931,2.12645491,65628.0,65627.0,0.010427]
[1721764864192,1.75280791,65628.0,65627.0,0.010427]
[1721764864502,1.75280791,65628.0,65627.0,0.011427]
[1721764864503,2.15955491,65628.0,65627.0,0.011427]
[1721764864679,2.15955491,65628.0,65627.0,0.010427]
[1721764864680,2.14555491,65628.0,65627.0,0.010427]
[1721764865017,2.15955491,65628.0,65627.0,0.011427]
[1721764865278,2.46430191,65628.0,65627.0,0.011427]
[1721764865579,2.15955491,65628.0,65627.0,0.002327]
[1721764865814,2.15955491,65628.0,65624.0,1e-06]
[1721764865815,2.526185,65625.0,65624.0,1e-06]
[1721764866018,3.41095533,65625.0,65624.0,1e-06]
[1721764866216,1.37938291,65625.0,65624.0,1e-06]
[1721764866517,1.83414391,65625.0,65624.0,1e-06]
[1721764866758,2.13890491,65625.0,65624.0,1e-06]
[1721764866904,2.17220491,65625.0,65624.0,1e-06]
[1721764867104,2.40619433,65625.0,65624.0,1e-06]
[1721764867304,2.40619433,65625.0,65611.0,0.009427]
[1721764867305,2.559821,65612.0,65611.0,0.009427]
[1721764867558,3.24625233,65612.0,65611.0,0.009427]
[1721764867895,3.24625233,65612.0,65572.0,0.02417133]
[1721764867896,1.433028,65601.0,65581.0,0.12891708]
[1721764868106,1.21407491,65601.0,65581.0,0.12891708]
[1721764868303,1.21407491,65601.0,65583.0,0.002794]
[1721764868430,1.21407491,65601.0,65581.0,0.12891708]
[1721764868431,1.21407491,65601.0,65582.0,0.011374]
[1721764868637,1.21407491,65601.0,65582.0,0.00858]
[1721764869044,0.152436,65601.0,65600.0,0.152327]
[1721764869245,0.457309,65601.0,65600.0,0.152327]
[1721764869463,0.304873,65601.0,65600.0,0.152327]
[1721764869663,0.457309,65601.0,65600.0,0.152327]
[1721764869866,0.304851,65606.0,65600.0,0.152327]
[1721764870071,0.14701991,65605.0,65600.0,0.1675597]
[1721764870345,0.4688,65615.0,65600.0,0.1675597]
[1721764870544,0.152421,65608.0,65601.0,0.02454997]
[1721764870660,0.14701991,65614.0,65601.0,0.02175597]
[1721764870876,0.152424,65607.0,65601.0,0.02175597]
[1721764871083,0.152424,65607.0,65600.0,0.154327]
[1721764871084,0.14701991,65614.0,65600.0,0.154327]
[1721764871284,0.14701991,65614.0,65601.0,0.002794]
[1721764871487,0.001,65605.0,65601.0,0.002794]
[1721764871691,0.304857,65605.0,65601.0,0.002794]
[1721764871946,0.005,65608.0,65600.0,0.152327]
[1721764872148,0.001,65607.0,65601.0,0.0530267]
[1721764872484,0.005,65608.0,65601.0,0.0382327]
[1721764872485,0.15742,65608.0,65601.0,0.0382327]
[1721764872660,0.152422,65607.0,65602.0,0.01905597]
[1721764872882,0.001,65605.0,65603.0,0.023]
[1721764873087,0.001,65605.0,65604.0,0.02415543]
[1721764873703,0.15243,65604.0,65602.0,0.02417133]
[1721764873909,0.001,65605.0,65602.0,0.02417133]
[1721764874161,0.304822,65612.0,65602.0,0.02417133]
[1721764874347,0.4688,65615.0,65604.0,0.005]
[1721764874348,0.001,65605.0,65604.0,0.005]
[1721764874563,0.001,65607.0,65605.0,0.0778]
[1721764874768,0.001,65607.0,65606.0,0.02096212]
[1721764875189,0.001,65607.0,65606.0,0.04396212]
[1721764875394,0.1524,65617.0,65606.0,0.04396212]
[1721764875605,0.30479,65619.0,65607.0,0.06551125]
[1721764875823,0.7931,65630.0,65607.0,0.06551125]
[1721764875824,0.7931,65630.0,65613.0,0.1156]
[1721764876043,0.4688,65636.0,65618.0,0.1436]
[1721764876249,0.0636,65642.0,65618.0,0.1436]
[1721764876250,0.152361,65634.0,65619.0,0.22530726]
[1721764876454,0.152361,65634.0,65620.0,0.078]
[1721764876455,0.15236,65634.0,65620.0,0.078]
[1721764876703,0.152355,65636.0,65621.0,0.32551004]
[1721764876913,0.304715,65635.0,65622.0,0.00304733]
[1721764877135,0.061046,65637.0,65623.0,0.07147781]
[1721764877345,0.14701991,65640.0,65624.0,0.00304733]
[1721764877557,0.4688,65642.0,65624.0,0.00304733]
[1721764877558,0.061044,65638.0,65625.0,0.073]
[1721764877764,0.4688,65642.0,65626.0,0.03812778]
[1721764877765,0.304707,65637.0,65626.0,0.03812778]
[1721764878008,0.304643,65651.0,65626.0,0.03812778]
[1721764878009,0.304676,65644.0,65628.0,0.0809]
[1721764878217,0.4688,65650.0,65628.0,0.0809]
[1721764878218,0.001,65635.0,65629.0,0.26279939]
[1721764878451,0.001,65635.0,65630.0,0.023]
[1721764878654,0.001,65635.0,65631.0,0.06019985]
[1721764878860,0.001,65635.0,65632.0,0.023]
[1721764879279,0.152348,65639.0,65632.0,0.023]
[1721764879687,0.11593142,65656.0,65632.0,0.023]
[1721764879688,0.304635,65653.0,65632.0,0.023]
[1721764879892,0.11593142,65656.0,65633.0,0.11384911]
[1721764880095,0.11593142,65656.0,65634.0,0.023]
[1721764880096,0.061037,65646.0,65634.0,0.023]
[1721764880305,0.061037,65646.0,65636.0,0.0601]
[1721764880510,0.152346,65640.0,65636.0,0.08427133]
[1721764880725,0.30468,65643.0,65637.0,0.03261673]
[1721764881133,0.152344,65641.0,65637.0,0.03261673]
[1721764881341,0.152344,65641.0,65638.0,0.03537372]
[1721764881914,0.30468,65643.0,65638.0,0.03537372]
[1721764881915,0.152346,65640.0,65638.0,0.03537372]
[1721764882125,0.152348,65639.0,65638.0,0.03537372]
[1721764882325,0.152348,65639.0,65637.0,0.007]
[1721764882886,0.152336,65645.0,65637.0,0.007]
[1721764883138,0.313652,65649.0,65638.0,0.13881204]
[1721764883139,0.009,65649.0,65638.0,0.13881204]
[1721764883345,0.152336,65645.0,65638.0,0.13881204]
[1721764883546,0.152332,65646.0,65638.0,0.13881204]
[1721764883752,0.002,65643.0,65639.0,0.05271033]
[1721764883960,0.002,65643.0,65640.0,0.023]
[1721764884162,0.152332,65646.0,65640.0,0.023]
[1721764884372,0.15233,65647.0,65641.0,0.04298136]
[1721764884575,0.304652,65649.0,65642.0,0.023]
[1721764884576,0.24940234,65649.0,65642.0,0.023]
[1721764884775,0.15233,65647.0,65643.0,0.02475317]
[1721764884994,0.304619,65656.0,65643.0,0.02475317]
[1721764884995,0.304656,65648.0,65643.0,0.02475317]
[1721764885120,0.05,65664.0,65643.0,0.02696533]
[1721764885325,0.042982,65654.0,65643.0,0.02696533]
[1721764885530,0.152329,65648.0,65643.0,0.02696533]
[1721764885732,0.304642,65651.0,65643.0,0.02696533]
[1721764885934,0.152325,65649.0,65643.0,0.02696533]
[1721764886134,0.304635,65653.0,65645.0,0.1425]
[1721764886337,0.152321,65651.0,65646.0,0.04504053]
[1721764886541,0.304591,65662.0,65647.0,0.00304636]
[1721764886742,0.4688,65663.0,65649.0,0.0753]
[1721764886743,0.1523,65660.0,65649.0,0.0753]
[1721764886941,0.1523,65660.0,65650.0,0.02897722]
[1721764887145,0.304592,65662.0,65651.0,0.023]
[1721764887510,0.152295,65662.0,65653.0,0.066]
[1721764887632,0.621093,65663.0,65654.0,0.04444025]
[1721764887831,0.4688,65663.0,65654.0,0.04444025]
[1721764888039,0.1523,65660.0,65654.0,0.04444025]
[1721764888252,0.304562,65668.0,65654.0,0.04444025]
[1721764888253,0.007,65662.0,65656.0,0.0777]
[1721764888638,0.007,65662.0,65658.0,0.0664]
[1721764888914,0.007,65662.0,65659.0,0.25181991]
[1721764889116,0.007,65662.0,65659.0,0.17001991]
[1721764889267,0.007,65662.0,65660.0,0.18962455]
[1721764889501,0.152274,65671.0,65661.0,0.023]
[1721764889703,0.304543,65673.0,65661.0,0.023]
[1721764889704,0.152272,65672.0,65661.0,0.023]
[1721764889919,0.007,65663.0,65662.0,0.3388469]
[1721764890122,0.00083,65677.0,65666.0,0.05]
[1721764890332,0.00083,65677.0,65667.0,0.55587066]
[1721764890531,0.00083,65677.0,65668.0,0.123]
[1721764890760,0.00083,65677.0,65669.0,0.14701991]
[1721764891107,0.00083,65677.0,65671.0,0.0784]
[1721764891311,0.00083,65677.0,65672.0,0.023]
[1721764891510,0.00083,65677.0,65673.0,0.03714199]
[1721764891710,0.153091,65677.0,65674.0,0.023]
[1721764891838,0.00083,65677.0,65674.0,0.023]
[1721764892449,0.15309,65677.0,65674.0,0.023]
[1721764892652,0.15309,65677.0,65675.0,0.01737133]
[1721764892653,0.00083,65677.0,65675.0,0.01737133]
[1721764892896,0.00083,65677.0,65676.0,0.0651]
[1721764893461,0.00083,65677.0,65676.0,0.14524496]
[1721764893672,0.00083,65677.0,65676.0,0.1652]
[1721764893852,0.00083,65677.0,65676.0,0.19269295]
[1721764894053,0.00083,65677.0,65676.0,0.19573783]
[1721764894642,0.00083,65677.0,65676.0,0.20669295]
[1721764895518,0.00083,65677.0,65676.0,0.22069295]
[1721764896134,0.00083,65677.0,65676.0,0.36771286]
[1721764902124,0.00083,65677.0,65676.0,0.41771285]
[1721764902364,0.00083,65677.0,65676.0,1.40234985]
[1721764902566,0.00083,65677.0,65676.0,1.60234985]
[1721764902971,0.00083,65677.0,65676.0,1.04556285]
[1721764903175,0.00083,65677.0,65676.0,1.28382485]
[1721764903571,0.00083,65677.0,65676.0,1.29782485]
[1721764904212,0.00083,65677.0,65676.0,1.58834985]
[1721764904414,0.00083,65677.0,65676.0,2.19939985]
[1721764904641,0.00083,65677.0,65676.0,2.21339985]
[1721764904815,0.00083,65677.0,65676.0,2.33983712]
[1721764906047,0.00083,65677.0,65676.0,2.39233573]
[1721764906243,0.00083,65677.0,65676.0,2.43912891]
[1721764906623,0.00943801,65694.0,65693.0,0.60666899]
[1721764906832,0.00943801,65694.0,65693.0,1.1984621]
[1721764907038,0.00943801,65694.0,65693.0,0.61811349]
[1721764908133,0.00943801,65694.0,65693.0,0.63211349]
[1721764908388,0.00943801,65694.0,65693.0,0.61811349]
[1721764908591,0.00943801,65694.0,65693.0,0.72034324]
[1721764908796,0.00943801,65694.0,65693.0,0.68434325]
[1721764909829,0.00943801,65694.0,65693.0,0.63174325]
[1721764910037,0.00943801,65694.0,65693.0,0.38249359]
[1721764910259,0.00943801,65694.0,65693.0,0.37049359]
[1721764910630,0.00943801,65694.0,65693.0,0.25807133]
[1721764911318,0.00943801,65694.0,65693.0,0.38450367]
[1721764911525,0.00943801,65694.0,65693.0,0.4353089]
[1721764911798,0.00943801,65694.0,65693.0,0.43530496]
[1721764912022,0.77054001,65694.0,65693.0,0.028]
[1721764912226,0.00943801,65694.0,65693.0,0.028]
[1721764912431,0.37793042,65694.0,65693.0,0.028]
[1721764912644,0.07348942,65694.0,65693.0,0.028]
[1721764912847,0.22570942,65694.0,65693.0,0.014]
[1721764913054,0.83459142,65694.0,65693.0,0.014]
[1721764913280,0.53015042,65694.0,65693.0,0.017]
[1721764913662,0.53015042,65694.0,65686.0,0.102794]
[1721764913663,0.152224,65693.0,65686.0,0.102794]
[1721764913990,0.304418,65699.0,65693.0,0.007]
[1721764913991,0.304427,65698.0,65693.0,0.007]
[1721764914219,0.152217,65696.0,65694.0,0.023]
[1721764914420,0.08292743,65701.0,65694.0,0.023]
[1721764914674,0.00943801,65701.0,65695.0,0.12643914]
[1721764914878,0.00943801,65701.0,65694.0,0.023]
[1721764914879,0.45664,65697.0,65696.0,0.01876105]
[1721764915100,0.45664,65697.0,65694.0,0.023]
[1721764915101,0.152217,65696.0,65694.0,0.023]
[1721764915300,0.152218,65695.0,65694.0,0.023]
[1721764915479,0.152216,65696.0,65694.0,0.14943115]
[1721764915629,0.152216,65696.0,65695.0,0.1450914]
[1721764915832,0.152214,65697.0,65695.0,0.1450914]
[1721764916071,0.152214,65697.0,65696.0,0.12643115]
[1721764916234,0.00943801,65701.0,65696.0,0.14565742]
[1721764916438,0.31385101,65701.0,65697.0,0.12643115]
[1721764916664,0.152209,65699.0,65698.0,0.12642869]
[1721764916887,0.456627,65699.0,65698.0,0.12642869]
[1721764917517,0.152209,65699.0,65698.0,0.12642869]
[1721764917650,0.456627,65699.0,65698.0,0.12642869]
[1721764917855,0.00943801,65701.0,65698.0,0.12642869]
[1721764918064,0.00943801,65701.0,65699.0,0.16667156]
[1721764918264,0.00943801,65701.0,65700.0,0.12643016]
[1721764918465,0.00943801,65701.0,65700.0,0.15060148]
[1721764918466,0.16164201,65701.0,65700.0,0.15060148]
[1721764918686,0.00943801,65701.0,65700.0,0.23120148]
[1721764918900,0.00943801,65701.0,65700.0,0.26858592]
[1721764920551,0.00943801,65701.0,65700.0,0.40062357]
[1721764920910,0.00943801,65701.0,65700.0,0.46197104]
[1721764921121,0.00943801,65701.0,65700.0,0.47497095]
[1721764921279,0.77046001,65701.0,65700.0,0.45197095]
[1721764921484,0.76546001,65701.0,65700.0,0.16360148]
[1721764921689,0.15664201,65701.0,65700.0,0.16359985]
[1721764921855,0.46105101,65701.0,65700.0,0.17314754]
[1721764922060,0.00443801,65701.0,65700.0,0.17314754]
[1721764922291,0.00443801,65701.0,65700.0,1.53087872]
[1721764922664,0.00943801,65712.0,65700.0,1.53087872]
[1721764922665,0.00943801,65712.0,65708.0,0.04999999]
[1721764922869,0.00943801,65712.0,65710.0,0.002794]
[1721764922982,0.00943801,65712.0,65711.0,0.46308871]
[1721764923194,0.00943801,65712.0,65711.0,0.48608871]
[1721764923398,0.00943801,65712.0,65711.0,0.54211471]
[1721764924039,0.00943801,65712.0,65711.0,0.68971471]
[1721764924241,0.00943801,65712.0,65711.0,0.729033]
[1721764924447,0.00943801,65712.0,65711.0,0.733033]
[1721764924652,0.00943801,65712.0,65711.0,0.729033]
[1721764925041,0.00943801,65712.0,65711.0,0.7289459]
[1721764925266,0.00943801,65712.0,65711.0,1.32693989]
[1721764925475,0.00943801,65712.0,65711.0,0.90314039]
[1721764925680,0.00943801,65712.0,65711.0,0.8399459]
[1721764925895,0.00943801,65712.0,65711.0,0.88516607]
[1721764926105,0.00943801,65712.0,65711.0,0.90313693]
[1721764926312,0.00943801,65712.0,65711.0,0.8351421]
[1721764926519,0.00943801,65712.0,65711.0,0.6245199]
[1721764926948,0.00943801,65712.0,65711.0,2.18803221]
[1721764927151,0.00943801,65715.0,65713.0,0.15199999]
[1721764927406,0.00858,65727.0,65726.0,0.04999999]
[1721764927407,0.0042343,65727.0,65726.0,0.04999999]
[1721764927616,0.0042343,65727.0,65726.0,0.5023199]
[1721764927836,0.0042343,65727.0,65726.0,0.65159069]
[1721764928038,0.0042343,65727.0,65726.0,0.50451628]
[1721764928247,0.0042343,65727.0,65726.0,0.37824549]
[1721764928456,0.4606663,65727.0,65726.0,0.35526202]
[1721764928673,0.0042343,65727.0,65726.0,0.49606202]
[1721764928919,0.05858,65760.0,65739.0,0.0614]
[1721764929120,0.05858,65760.0,65757.0,0.04999999]
[1721764929121,0.00858,65760.0,65757.0,0.04999999]
[1721764929336,0.00858,65760.0,65758.0,0.36102873]
[1721764929556,0.00853,65760.0,65759.0,0.31594373]
[1721764929757,0.76887,65760.0,65759.0,0.31594373]
[1721764929976,0.76887,65760.0,65759.0,0.36924975]
[1721764929977,0.160598,65760.0,65759.0,0.36924975]
[1721764930194,0.160598,65760.0,65759.0,0.31586722]
[1721764930453,0.76887,65760.0,65759.0,0.31586722]
[1721764930658,0.76887,65760.0,65759.0,0.12637749]
[1721764930875,0.76887,65760.0,65759.0,0.14037749]
[1721764930876,1.073006,65760.0,65759.0,0.14037749]
[1721764931113,1.073006,65760.0,65759.0,0.014]
[1721764931350,0.456231,65756.0,65755.0,0.05331005]
[1721764931568,0.152077,65756.0,65755.0,0.37840898]
[1721764931793,0.00853,65760.0,65755.0,0.37840898]
[1721764932025,0.00853,65760.0,65759.0,0.05330608]
[1721764932233,0.00853,65760.0,65759.0,0.35515439]
[1721764932438,0.00853,65760.0,65759.0,0.39159611]